[Event "Late-Titled-Tuesday-Blitz-May-07-2024"]
[Site "Chess.com"]
[Date "2024.05.07"]
[Round "5"]
[White "jk13"]
[Black "Nicolik"]
[Result "1-0"]
[WhiteElo "2630"]
[BlackElo "2489"]
[TimeControl "180+1"]
[EndTime "14:52:53 PDT"]
[Termination "jk13 won by resignation"]

1. e4 {[%clk 0:03:00.9]} 1... c5 {[%clk 0:02:59.8]} 2. Nf3 {[%clk 0:03:00.6]}
2... Nc6 {[%clk 0:02:59.3]} 3. c3 {[%clk 0:03:01.1]} 3... d5 {[%clk 0:02:59.1]}
4. exd5 {[%clk 0:03:02]} 4... Qxd5 {[%clk 0:02:59.7]} 5. d4 {[%clk 0:03:02.9]}
5... Bf5 {[%clk 0:02:58.1]} 6. dxc5 {[%clk 0:03:03.1]} 6... Qxd1+ {[%clk
0:02:55.6]} 7. Kxd1 {[%clk 0:03:04]} 7... e5 {[%clk 0:02:55.4]} 8. Be3 {[%clk
0:03:03.9]} 8... Nf6 {[%clk 0:02:49.2]} 9. Nbd2 {[%clk 0:03:03.8]} 9... Nd5
{[%clk 0:02:49.1]} 10. Nb3 {[%clk 0:03:03.9]} 10... Nxe3+ {[%clk 0:02:48.4]} 11.
fxe3 {[%clk 0:03:04.3]} 11... a5 {[%clk 0:02:40.9]} 12. a4 {[%clk 0:03:03.7]}
12... Be6 {[%clk 0:02:41.4]} 13. Nfd2 {[%clk 0:03:03.2]} 13... Be7 {[%clk
0:02:06]} 14. Bc4 {[%clk 0:03:01.5]} 14... Bg4+ {[%clk 0:02:04.5]} 15. Kc2
{[%clk 0:03:00.9]} 15... Bg5 {[%clk 0:02:02.1]} 16. e4 {[%clk 0:02:50.2]} 16...
O-O {[%clk 0:01:59.9]} 17. Rhf1 {[%clk 0:02:47.7]} 17... h6 {[%clk 0:01:49.9]}
18. Rae1 {[%clk 0:02:29.1]} 18... Bh5 {[%clk 0:01:48.7]} 19. Bd5 {[%clk
0:02:24]} 19... Bg6 {[%clk 0:01:45.8]} 20. Nc4 {[%clk 0:02:20.3]} 20... Rfe8
{[%clk 0:01:13]} 21. Nd6 {[%clk 0:02:17]} 21... Re7 {[%clk 0:01:11.4]} 22. Nxb7
{[%clk 0:02:08.9]} 22... Rxb7 {[%clk 0:01:11.5]} 23. Bxc6 {[%clk 0:02:08.8]}
23... Rab8 {[%clk 0:01:04.9]} 24. Bxb7 {[%clk 0:02:08.5]} 24... Rxb7 {[%clk
0:01:05.1]} 25. Nxa5 {[%clk 0:02:08.6]} 25... Ra7 {[%clk 0:01:04.5]} 26. b4
{[%clk 0:02:08.2]} 26... Bd8 {[%clk 0:01:02.2]} 27. Nc6 {[%clk 0:02:08.1]} 27...
Ra8 {[%clk 0:01:02.4]} 28. Nxd8 {[%clk 0:02:05.2]} 28... Rxd8 {[%clk 0:01:02]}
29. b5 {[%clk 0:02:05.1]} 29... f6 {[%clk 0:01:00.9]} 30. c6 {[%clk 0:02:03.9]}
30... Ra8 {[%clk 0:00:57.9]} 31. b6 {[%clk 0:02:01.6]} 1-0

[Event "Late-Titled-Tuesday-Blitz-May-07-2024"]
[Site "Chess.com"]
[Date "2024.05.07"]
[Round "5"]
[White "Airquake"]
[Black "kemelgallo"]
[Result "1-0"]
[WhiteElo "2847"]
[BlackElo "2658"]
[TimeControl "180+1"]
[EndTime "14:52:58 PDT"]
[Termination "Airquake won by resignation"]

1. e4 {[%clk 0:03:00]} 1... c5 {[%clk 0:02:58.1]} 2. Nf3 {[%clk 0:02:57]} 2...
d6 {[%clk 0:02:56.9]} 3. d4 {[%clk 0:02:53.6]} 3... cxd4 {[%clk 0:02:57.8]} 4.
Nxd4 {[%clk 0:02:54.2]} 4... Nf6 {[%clk 0:02:58.2]} 5. Nc3 {[%clk 0:02:54.3]}
5... Nc6 {[%clk 0:02:58.1]} 6. Be2 {[%clk 0:02:49.4]} 6... e5 {[%clk 0:02:55.1]}
7. Nb3 {[%clk 0:02:47.9]} 7... Be7 {[%clk 0:02:53.3]} 8. O-O {[%clk 0:02:48]}
8... O-O {[%clk 0:02:51.6]} 9. Be3 {[%clk 0:02:35.3]} 9... Be6 {[%clk
0:02:49.9]} 10. f4 {[%clk 0:02:26]} 10... exf4 {[%clk 0:02:47.4]} 11. Bxf4
{[%clk 0:02:26.2]} 11... d5 {[%clk 0:02:47.4]} 12. exd5 {[%clk 0:02:23.8]} 12...
Nxd5 {[%clk 0:02:44.5]} 13. Nxd5 {[%clk 0:02:23.7]} 13... Bxd5 {[%clk
0:02:36.2]} 14. Bf3 {[%clk 0:02:20.8]} 14... Qb6+ {[%clk 0:02:34.1]} 15. Kh1
{[%clk 0:02:19.8]} 15... Bxf3 {[%clk 0:02:32.1]} 16. Qxf3 {[%clk 0:02:19.3]}
16... Bf6 {[%clk 0:02:30.7]} 17. c3 {[%clk 0:02:18.3]} 17... Ne5 {[%clk
0:02:22.8]} 18. Qg3 {[%clk 0:02:04.9]} 18... Nc4 {[%clk 0:02:18.3]} 19. Rf2
{[%clk 0:01:51]} 19... Rfe8 {[%clk 0:02:11.1]} 20. Raf1 {[%clk 0:01:47.7]} 20...
a5 {[%clk 0:02:00.7]} 21. Bc7 {[%clk 0:01:36.5]} 21... Qc6 {[%clk 0:01:59.9]}
22. Rxf6 {[%clk 0:01:34.1]} 22... Re6 {[%clk 0:01:40]} 23. Rxf7 {[%clk
0:01:20.3]} 23... Rg6 {[%clk 0:01:39.8]} 24. Qf3 {[%clk 0:01:18.4]} 24... Qxf3
{[%clk 0:01:34.8]} 25. R7xf3 {[%clk 0:01:16.3]} 25... Nd2 {[%clk 0:01:33.2]} 26.
Nxd2 {[%clk 0:01:15]} 1-0

[Event "Late-Titled-Tuesday-Blitz-May-07-2024"]
[Site "Chess.com"]
[Date "2024.05.07"]
[Round "5"]
[White "GoltsevDmitry2000"]
[Black "TheDiscoOne"]
[Result "1-0"]
[WhiteElo "2746"]
[BlackElo "2520"]
[TimeControl "180+1"]
[EndTime "14:53:25 PDT"]
[Termination "GoltsevDmitry2000 won on time"]

1. e4 {[%clk 0:03:00.9]} 1... c5 {[%clk 0:02:58]} 2. Nf3 {[%clk 0:03:01.2]} 2...
g6 {[%clk 0:02:58]} 3. d4 {[%clk 0:03:01.5]} 3... cxd4 {[%clk 0:02:58.8]} 4.
Qxd4 {[%clk 0:03:01.6]} 4... Nf6 {[%clk 0:02:58.3]} 5. Nc3 {[%clk 0:03:01.8]}
5... Nc6 {[%clk 0:02:58.3]} 6. Qa4 {[%clk 0:03:01.8]} 6... d6 {[%clk 0:02:58.8]}
7. e5 {[%clk 0:03:00.4]} 7... dxe5 {[%clk 0:02:59.7]} 8. Nxe5 {[%clk 0:03:00.7]}
8... Bd7 {[%clk 0:02:59.7]} 9. Nxd7 {[%clk 0:03:00.8]} 9... Nxd7 {[%clk
0:02:59.4]} 10. Bb5 {[%clk 0:03:01.4]} 10... Qc8 {[%clk 0:02:58.5]} 11. O-O
{[%clk 0:02:59.7]} 11... Bg7 {[%clk 0:02:58.3]} 12. Nd5 {[%clk 0:03:00.3]} 12...
a6 {[%clk 0:02:43.3]} 13. Re1 {[%clk 0:02:13.4]} 13... e6 {[%clk 0:02:16.3]} 14.
Bf4 {[%clk 0:02:05.3]} 14... axb5 {[%clk 0:01:19.4]} 15. Nc7+ {[%clk 0:02:04.5]}
15... Qxc7 {[%clk 0:01:16.3]} 16. Qxa8+ {[%clk 0:02:03.8]} 16... Qd8 {[%clk
0:01:16]} 17. Qxb7 {[%clk 0:02:03.3]} 17... Qb6 {[%clk 0:00:58]} 18. Qc8+ {[%clk
0:01:58.1]} 18... Nd8 {[%clk 0:00:51.6]} 19. Bc7 {[%clk 0:01:56.2]} 1-0

[Event "Late-Titled-Tuesday-Blitz-May-07-2024"]
[Site "Chess.com"]
[Date "2024.05.07"]
[Round "5"]
[White "Narek_Ghimoyan"]
[Black "Squirlolz"]
[Result "1-0"]
[WhiteElo "2423"]
[BlackElo "2569"]
[TimeControl "180+1"]
[EndTime "14:53:30 PDT"]
[Termination "Narek_Ghimoyan won by resignation"]

1. d4 {[%clk 0:02:59.8]} 1... a5 {[%clk 0:03:00.1]} 2. c4 {[%clk 0:03:00.5]}
2... a4 {[%clk 0:02:59.3]} 3. a3 {[%clk 0:02:59.8]} 3... Nf6 {[%clk 0:02:58.3]}
4. Nc3 {[%clk 0:02:59.5]} 4... c5 {[%clk 0:02:58.3]} 5. d5 {[%clk 0:02:59.3]}
5... e6 {[%clk 0:02:57.3]} 6. e4 {[%clk 0:02:54.4]} 6... exd5 {[%clk 0:02:57.3]}
7. cxd5 {[%clk 0:02:55]} 7... Qa5 {[%clk 0:02:46.1]} 8. Bd2 {[%clk 0:02:50.1]}
8... d6 {[%clk 0:02:44.4]} 9. Nxa4 {[%clk 0:02:42.9]} 9... Qxa4 {[%clk 0:02:42]}
10. Qxa4+ {[%clk 0:02:39.5]} 10... Rxa4 {[%clk 0:02:42.9]} 11. Bb5+ {[%clk
0:02:39.5]} 11... Bd7 {[%clk 0:02:43.7]} 12. Bxa4 {[%clk 0:02:40.4]} 12... Bxa4
{[%clk 0:02:44.6]} 13. f3 {[%clk 0:02:40.6]} 13... g6 {[%clk 0:02:42.5]} 14. Ne2
{[%clk 0:02:40.7]} 14... Bg7 {[%clk 0:02:41.5]} 15. Nc3 {[%clk 0:02:41.6]} 15...
Bd7 {[%clk 0:02:35.3]} 16. b4 {[%clk 0:02:41.5]} 16... cxb4 {[%clk 0:02:28.1]}
17. axb4 {[%clk 0:02:42.4]} 17... Na6 {[%clk 0:02:25.8]} 18. b5 {[%clk
0:02:42.1]} 18... Nc5 {[%clk 0:02:26.2]} 19. Ra8+ {[%clk 0:02:37.4]} 19... Ke7
{[%clk 0:02:26.6]} 20. Rxh8 {[%clk 0:02:38.3]} 20... Bxh8 {[%clk 0:02:27.5]} 21.
Kf2 {[%clk 0:02:37.6]} 21... Ne8 {[%clk 0:02:24.2]} 22. Ne2 {[%clk 0:02:35.7]}
22... Bxb5 {[%clk 0:02:22.2]} 23. Rb1 {[%clk 0:02:34.4]} 23... Ba6 {[%clk
0:02:19.1]} 24. Be3 {[%clk 0:02:33.2]} 24... Nd3+ {[%clk 0:02:17.4]} 25. Kf1
{[%clk 0:02:29.7]} 25... Nc7 {[%clk 0:02:16.9]} 26. Nd4 {[%clk 0:02:18.2]} 26...
Nb2+ {[%clk 0:02:01.5]} 27. Kg1 {[%clk 0:02:15.9]} 27... Nc4 {[%clk 0:02:01.2]}
28. Bf2 {[%clk 0:02:15.8]} 28... Kd7 {[%clk 0:01:58.6]} 29. h4 {[%clk
0:02:13.7]} 29... b5 {[%clk 0:01:58.3]} 30. Ra1 {[%clk 0:02:09.8]} 30... b4
{[%clk 0:01:55.6]} 31. Rb1 {[%clk 0:02:09.9]} 31... Ne5 {[%clk 0:01:42]} 32.
Rxb4 {[%clk 0:02:04.9]} 32... Nd3 {[%clk 0:01:42.2]} 33. Ra4 {[%clk 0:01:58.3]}
33... Nxf2 {[%clk 0:01:36]} 34. Kxf2 {[%clk 0:01:59.2]} 34... Bc8 {[%clk
0:01:12]} 35. Nc6 {[%clk 0:01:55.5]} 35... Bb7 {[%clk 0:01:08.7]} 36. Nb8+
{[%clk 0:01:50]} 36... Kc8 {[%clk 0:01:06.6]} 37. Nc6 {[%clk 0:01:49.7]} 37...
Bxc6 {[%clk 0:01:03.9]} 38. dxc6 {[%clk 0:01:50.6]} 38... Ne6 {[%clk 0:01:03]}
39. Ra8+ {[%clk 0:01:49.3]} 39... Kc7 {[%clk 0:01:02.6]} 40. Rxh8 {[%clk
0:01:50.2]} 1-0

[Event "Late-Titled-Tuesday-Blitz-May-07-2024"]
[Site "Chess.com"]
[Date "2024.05.07"]
[Round "5"]
[White "ansko1999"]
[Black "super_emi_26"]
[Result "0-1"]
[WhiteElo "2663"]
[BlackElo "2854"]
[TimeControl "180+1"]
[EndTime "14:53:57 PDT"]
[Termination "super_emi_26 won by resignation"]

1. c4 {[%clk 0:03:00.9]} 1... c6 {[%clk 0:03:00]} 2. Nf3 {[%clk 0:03:00.1]} 2...
d5 {[%clk 0:03:00.6]} 3. e3 {[%clk 0:03:00.2]} 3... Nf6 {[%clk 0:03:01.2]} 4. d4
{[%clk 0:02:58.4]} 4... g6 {[%clk 0:03:01.5]} 5. Nc3 {[%clk 0:02:52.9]} 5... Bg7
{[%clk 0:03:01.9]} 6. Qb3 {[%clk 0:02:49.1]} 6... O-O {[%clk 0:03:01.7]} 7. a4
{[%clk 0:02:48.4]} 7... Qb6 {[%clk 0:02:55.8]} 8. Qxb6 {[%clk 0:02:42]} 8...
axb6 {[%clk 0:02:56.7]} 9. cxd5 {[%clk 0:02:42]} 9... Nxd5 {[%clk 0:02:50.6]}
10. Nxd5 {[%clk 0:02:41]} 10... cxd5 {[%clk 0:02:51.5]} 11. Bb5 {[%clk 0:02:35]}
11... Bd7 {[%clk 0:02:45.5]} 12. Bxd7 {[%clk 0:02:32.5]} 12... Nxd7 {[%clk
0:02:46.4]} 13. Bd2 {[%clk 0:02:29.4]} 13... e5 {[%clk 0:02:42.1]} 14. Bb4
{[%clk 0:02:13.4]} 14... Rfc8 {[%clk 0:02:41.5]} 15. Kd2 {[%clk 0:01:45]} 15...
Rc4 {[%clk 0:02:39.4]} 16. Bc3 {[%clk 0:01:41.3]} 16... e4 {[%clk 0:02:39.3]}
17. Ne5 {[%clk 0:01:32.6]} 17... Bxe5 {[%clk 0:02:38]} 18. dxe5 {[%clk
0:01:33.5]} 18... Nc5 {[%clk 0:02:34.6]} 19. Ra3 {[%clk 0:01:24.6]} 19... Rcxa4
{[%clk 0:02:33.7]} 20. Rxa4 {[%clk 0:01:02.2]} 20... Rxa4 {[%clk 0:02:30.5]} 21.
Kc2 {[%clk 0:01:01.7]} 21... Kf8 {[%clk 0:02:23.6]} 22. Rd1 {[%clk 0:01:01.2]}
22... Nd3 {[%clk 0:02:23.2]} 23. f4 {[%clk 0:00:55.9]} 23... h5 {[%clk
0:02:16.9]} 24. Bd4 {[%clk 0:00:51.6]} 24... b5 {[%clk 0:02:05]} 25. Kb3 {[%clk
0:00:47.3]} 25... Ke7 {[%clk 0:02:03.3]} 26. g3 {[%clk 0:00:42.3]} 26... Ke6
{[%clk 0:02:02.5]} 27. h3 {[%clk 0:00:42.2]} 27... Nf2 {[%clk 0:01:58]} 28. Rc1
{[%clk 0:00:42.1]} 28... Rc4 {[%clk 0:01:58.6]} 29. Ra1 {[%clk 0:00:42.4]} 29...
Nxh3 {[%clk 0:01:55.3]} 30. Ra5 {[%clk 0:00:42.3]} 30... Ng1 {[%clk 0:01:48.9]}
31. Rxb5 {[%clk 0:00:42]} 31... Ne2 {[%clk 0:01:49.5]} 32. Rb6+ {[%clk
0:00:41.1]} 32... Kf5 {[%clk 0:01:50]} 33. Rf6+ {[%clk 0:00:41.1]} 33... Kg4
{[%clk 0:01:50.2]} 34. Rxf7 {[%clk 0:00:40.9]} 34... Nxd4+ {[%clk 0:01:50.2]}
35. exd4 {[%clk 0:00:41.1]} 35... e3 {[%clk 0:01:50.9]} 36. f5 {[%clk
0:00:21.6]} 36... e2 {[%clk 0:01:50.6]} 37. fxg6 {[%clk 0:00:20.8]} 37... e1=Q
{[%clk 0:01:50.7]} 38. g7 {[%clk 0:00:21.5]} 38... Qd1+ {[%clk 0:01:50.7]} 0-1

[Event "Late-Titled-Tuesday-Blitz-May-07-2024"]
[Site "Chess.com"]
[Date "2024.05.07"]
[Round "5"]
[White "duone"]
[Black "besarquis"]
[Result "0-1"]
[WhiteElo "2424"]
[BlackElo "2297"]
[TimeControl "180+1"]
[EndTime "14:53:57 PDT"]
[Termination "besarquis won by checkmate"]

1. Nf3 {[%clk 0:03:00.9]} 1... Nf6 {[%clk 0:02:58.1]} 2. c4 {[%clk 0:02:57.1]}
2... e6 {[%clk 0:02:56.1]} 3. g3 {[%clk 0:02:56.4]} 3... d5 {[%clk 0:02:56.3]}
4. Bg2 {[%clk 0:02:56.5]} 4... Be7 {[%clk 0:02:55.4]} 5. O-O {[%clk 0:02:56.4]}
5... O-O {[%clk 0:02:55.5]} 6. b3 {[%clk 0:02:55.3]} 6... c6 {[%clk 0:02:49.2]}
7. Bb2 {[%clk 0:02:55.1]} 7... Nbd7 {[%clk 0:02:49.5]} 8. Nc3 {[%clk 0:02:55.1]}
8... Re8 {[%clk 0:02:48.8]} 9. d4 {[%clk 0:02:54]} 9... b6 {[%clk 0:02:47.2]}
10. Nd2 {[%clk 0:02:49.5]} 10... Bb7 {[%clk 0:02:46.8]} 11. e4 {[%clk
0:02:49.7]} 11... dxe4 {[%clk 0:02:46]} 12. Ndxe4 {[%clk 0:02:49.3]} 12... Rc8
{[%clk 0:02:45.4]} 13. Re1 {[%clk 0:02:47]} 13... Nxe4 {[%clk 0:02:45.3]} 14.
Nxe4 {[%clk 0:02:46.3]} 14... Nf6 {[%clk 0:02:46]} 15. Qc2 {[%clk 0:02:43.9]}
15... Qc7 {[%clk 0:02:40.3]} 16. Rad1 {[%clk 0:02:38.6]} 16... Rcd8 {[%clk
0:02:38.8]} 17. Qb1 {[%clk 0:02:28.8]} 17... Qb8 {[%clk 0:02:35.3]} 18. f4
{[%clk 0:02:19.3]} 18... Qa8 {[%clk 0:02:26.1]} 19. Ng5 {[%clk 0:02:17.5]} 19...
h6 {[%clk 0:02:20.6]} 20. Nf3 {[%clk 0:02:07.3]} 20... c5 {[%clk 0:02:16.9]} 21.
d5 {[%clk 0:02:00.6]} 21... exd5 {[%clk 0:02:06.8]} 22. Ne5 {[%clk 0:02:00.3]}
22... dxc4 {[%clk 0:02:02.1]} 23. Bxb7 {[%clk 0:01:57.8]} 23... Qxb7 {[%clk
0:02:01.6]} 24. bxc4 {[%clk 0:01:58.5]} 24... Bf8 {[%clk 0:01:48.4]} 25. Qf5
{[%clk 0:01:55.9]} 25... Qc8 {[%clk 0:01:12.7]} 26. Qc2 {[%clk 0:01:43.5]} 26...
Rxd1 {[%clk 0:01:10.6]} 27. Rxd1 {[%clk 0:01:44.4]} 27... Rd8 {[%clk 0:01:11]}
28. Kf2 {[%clk 0:01:40.2]} 28... Bd6 {[%clk 0:01:05.3]} 29. Nf3 {[%clk
0:01:34.9]} 29... Ng4+ {[%clk 0:01:04.4]} 30. Kg2 {[%clk 0:01:35.4]} 30... Ne3+
{[%clk 0:01:03.5]} 31. Kf2 {[%clk 0:01:33.9]} 31... Nxc2 {[%clk 0:01:04.1]} 32.
Rd2 {[%clk 0:01:32.8]} 32... Nd4 {[%clk 0:00:59.5]} 33. Nxd4 {[%clk 0:01:32.3]}
33... cxd4 {[%clk 0:00:59.8]} 34. Bxd4 {[%clk 0:01:32.8]} 34... Bc5 {[%clk
0:00:58.6]} 35. Bxc5 {[%clk 0:01:32.3]} 35... Rxd2+ {[%clk 0:00:58.8]} 36. Ke3
{[%clk 0:01:33.2]} 36... Qxc5+ {[%clk 0:00:58.8]} 37. Kxd2 {[%clk 0:01:33.9]}
37... Qxc4 {[%clk 0:00:59.3]} 38. f5 {[%clk 0:01:34.2]} 38... b5 {[%clk
0:00:59]} 39. g4 {[%clk 0:01:35.1]} 39... a5 {[%clk 0:00:59.1]} 40. h3 {[%clk
0:01:36]} 40... b4 {[%clk 0:00:59.5]} 41. g5 {[%clk 0:01:36.3]} 41... a4 {[%clk
0:00:58.2]} 42. h4 {[%clk 0:01:37.2]} 42... b3 {[%clk 0:00:58]} 43. g6 {[%clk
0:01:38.1]} 43... bxa2 {[%clk 0:00:56.8]} 44. Ke3 {[%clk 0:01:39]} 44... a1=Q
{[%clk 0:00:56.5]} 45. gxf7+ {[%clk 0:01:39.9]} 45... Kxf7 {[%clk 0:00:55.4]}
46. f6 {[%clk 0:01:40.8]} 46... Qac3+ {[%clk 0:00:55.6]} 47. Kf2 {[%clk
0:01:40.3]} 47... Qa2+ {[%clk 0:00:56.2]} 48. Kf1 {[%clk 0:01:39.8]} 48... Qca1#
{[%clk 0:00:56.9]} 0-1

[Event "Late-Titled-Tuesday-Blitz-May-07-2024"]
[Site "Chess.com"]
[Date "2024.05.07"]
[Round "5"]
[White "grzechu96"]
[Black "IndianSchoolOfSuffering"]
[Result "1-0"]
[WhiteElo "2791"]
[BlackElo "2413"]
[TimeControl "180+1"]
[EndTime "14:54:07 PDT"]
[Termination "grzechu96 won by resignation"]

1. e4 {[%clk 0:03:00.9]} 1... e5 {[%clk 0:02:57.4]} 2. Nf3 {[%clk 0:03:01.2]}
2... Nc6 {[%clk 0:02:57.2]} 3. Bc4 {[%clk 0:03:01.5]} 3... Bc5 {[%clk
0:02:56.4]} 4. O-O {[%clk 0:03:01.3]} 4... Nf6 {[%clk 0:02:55.2]} 5. d3 {[%clk
0:03:01.3]} 5... a6 {[%clk 0:02:54.2]} 6. c3 {[%clk 0:02:59.9]} 6... d6 {[%clk
0:02:54]} 7. Bb3 {[%clk 0:02:57.8]} 7... Ba7 {[%clk 0:02:53.4]} 8. Re1 {[%clk
0:02:57.7]} 8... h6 {[%clk 0:02:50.7]} 9. Nbd2 {[%clk 0:02:57.9]} 9... O-O
{[%clk 0:02:48.6]} 10. h3 {[%clk 0:02:57.7]} 10... Be6 {[%clk 0:02:48.5]} 11.
Bc2 {[%clk 0:02:58.1]} 11... Ne7 {[%clk 0:02:48.2]} 12. Nf1 {[%clk 0:02:57.3]}
12... Ng6 {[%clk 0:02:48.5]} 13. Ng3 {[%clk 0:02:57.9]} 13... c6 {[%clk
0:02:45.3]} 14. d4 {[%clk 0:02:58]} 14... Qc7 {[%clk 0:02:41.8]} 15. Be3 {[%clk
0:02:56.7]} 15... Rfe8 {[%clk 0:02:39.3]} 16. Qd2 {[%clk 0:02:56.1]} 16... Kh7
{[%clk 0:02:17.5]} 17. a4 {[%clk 0:02:53.5]} 17... Rad8 {[%clk 0:02:12]} 18.
Rad1 {[%clk 0:02:52.3]} 18... a5 {[%clk 0:02:10.6]} 19. Qc1 {[%clk 0:02:41.4]}
19... Bb6 {[%clk 0:02:00.4]} 20. b3 {[%clk 0:02:36.4]} 20... Ba7 {[%clk
0:01:28]} 21. c4 {[%clk 0:02:27.8]} 21... c5 {[%clk 0:01:22.2]} 22. d5 {[%clk
0:02:08.5]} 22... Bc8 {[%clk 0:01:21.7]} 23. Nf5 {[%clk 0:02:03.6]} 23... Ng8
{[%clk 0:00:59.8]} 24. g4 {[%clk 0:02:00.4]} 24... Bb6 {[%clk 0:00:53.7]} 25. h4
{[%clk 0:01:50.1]} 25... f6 {[%clk 0:00:45.2]} 26. Kg2 {[%clk 0:01:35.1]} 26...
Qf7 {[%clk 0:00:44.9]} 27. Rh1 {[%clk 0:01:29.5]} 27... Bc7 {[%clk 0:00:43.2]}
28. g5 {[%clk 0:01:13.5]} 28... Bxf5 {[%clk 0:00:36.2]} 29. exf5 {[%clk
0:01:12.8]} 1-0

[Event "Late-Titled-Tuesday-Blitz-May-07-2024"]
[Site "Chess.com"]
[Date "2024.05.07"]
[Round "5"]
[White "Nf3c5"]
[Black "Chess_Star1234"]
[Result "1-0"]
[WhiteElo "2624"]
[BlackElo "2481"]
[TimeControl "180+1"]
[EndTime "14:54:20 PDT"]
[Termination "Nf3c5 won by resignation"]

1. e4 {[%clk 0:03:00.9]} 1... e5 {[%clk 0:02:46.5]} 2. Nf3 {[%clk 0:02:59.6]}
2... Nc6 {[%clk 0:02:43.7]} 3. Nc3 {[%clk 0:02:58.4]} 3... Nf6 {[%clk
0:02:43.4]} 4. h3 {[%clk 0:02:58.4]} 4... Bb4 {[%clk 0:02:41.1]} 5. Nd5 {[%clk
0:02:55.7]} 5... Bc5 {[%clk 0:02:40.4]} 6. c3 {[%clk 0:02:51.5]} 6... O-O {[%clk
0:02:36.9]} 7. d3 {[%clk 0:02:37.1]} 7... h6 {[%clk 0:02:23.5]} 8. Nxf6+ {[%clk
0:02:28.9]} 8... Qxf6 {[%clk 0:02:24.4]} 9. g4 {[%clk 0:02:28.4]} 9... d6 {[%clk
0:01:41.3]} 10. g5 {[%clk 0:02:19.2]} 10... Qe6 {[%clk 0:01:37.2]} 11. gxh6
{[%clk 0:02:17.3]} 11... gxh6 {[%clk 0:01:35.4]} 12. Rg1+ {[%clk 0:01:45.6]}
12... Kh7 {[%clk 0:01:18.6]} 13. a3 {[%clk 0:01:02.7]} 13... Bb6 {[%clk
0:00:59.4]} 14. Ng5+ {[%clk 0:00:45.7]} 14... hxg5 {[%clk 0:00:39.7]} 15. Rxg5
{[%clk 0:00:46.6]} 1-0

[Event "Late-Titled-Tuesday-Blitz-May-07-2024"]
[Site "Chess.com"]
[Date "2024.05.07"]
[Round "5"]
[White "simaopdias"]
[Black "ElCoachRene"]
[Result "1-0"]
[WhiteElo "2300"]
[BlackElo "1972"]
[TimeControl "180+1"]
[EndTime "14:54:20 PDT"]
[Termination "simaopdias won by resignation"]

1. e4 {[%clk 0:03:00.2]} 1... Nc6 {[%clk 0:02:59.3]} 2. Nf3 {[%clk 0:03:00.5]}
2... d5 {[%clk 0:02:59.6]} 3. exd5 {[%clk 0:03:00.5]} 3... Qxd5 {[%clk
0:03:00.5]} 4. Nc3 {[%clk 0:02:59.8]} 4... Qa5 {[%clk 0:03:00.9]} 5. Bc4 {[%clk
0:02:59.9]} 5... Bg4 {[%clk 0:03:00.8]} 6. h3 {[%clk 0:02:58.2]} 6... Qh5 {[%clk
0:02:57.8]} 7. O-O {[%clk 0:02:58.5]} 7... Bxf3 {[%clk 0:02:55.6]} 8. Qxf3
{[%clk 0:02:55.6]} 8... Qxf3 {[%clk 0:02:55.1]} 9. gxf3 {[%clk 0:02:56.5]} 9...
Nd4 {[%clk 0:02:52.7]} 10. Nb5 {[%clk 0:02:41.8]} 10... Nxf3+ {[%clk 0:02:30.4]}
11. Kg2 {[%clk 0:02:40.8]} 11... Ne5 {[%clk 0:02:27.5]} 12. Nxc7+ {[%clk
0:02:38.3]} 12... Kd7 {[%clk 0:02:27.1]} 13. Nxa8 {[%clk 0:02:32.5]} 13... Nxc4
{[%clk 0:02:26.6]} 14. d3 {[%clk 0:02:32.2]} 14... Nd6 {[%clk 0:02:22]} 15. Bf4
{[%clk 0:02:32.3]} 15... f6 {[%clk 0:02:12.7]} 16. d4 {[%clk 0:02:29.8]} 16...
e6 {[%clk 0:02:06.9]} 17. a4 {[%clk 0:02:27.9]} 17... Nh6 {[%clk 0:02:03.7]} 18.
c4 {[%clk 0:02:19.8]} 18... Be7 {[%clk 0:01:16.1]} 19. c5 {[%clk 0:02:17.4]}
19... Nc4 {[%clk 0:00:35.8]} 20. b3 {[%clk 0:02:09.6]} 20... Na5 {[%clk
0:00:31.6]} 21. b4 {[%clk 0:02:04.6]} 21... Nc6 {[%clk 0:00:31.5]} 22. Nc7
{[%clk 0:01:59.1]} 22... a6 {[%clk 0:00:29.2]} 23. b5 {[%clk 0:01:57.4]} 23...
axb5 {[%clk 0:00:24.1]} 24. Nxb5 {[%clk 0:01:56.1]} 24... e5 {[%clk 0:00:18.8]}
25. Bxh6 {[%clk 0:01:51.2]} 25... gxh6 {[%clk 0:00:16.6]} 26. d5 {[%clk
0:01:51.4]} 26... Nd4 {[%clk 0:00:14.6]} 27. d6 {[%clk 0:01:51.4]} 27... Bf8
{[%clk 0:00:12]} 28. Nxd4 {[%clk 0:01:48.3]} 28... Rg8+ {[%clk 0:00:11]} 29. Kf3
{[%clk 0:01:47.7]} 29... exd4 {[%clk 0:00:11.5]} 30. Rg1 {[%clk 0:01:43.2]}
30... Bg7 {[%clk 0:00:10.7]} 31. Ke4 {[%clk 0:01:41.1]} 31... f5+ {[%clk
0:00:07.1]} 32. Kd5 {[%clk 0:01:40.7]} 32... Re8 {[%clk 0:00:01.4]} 33. Rxg7+
{[%clk 0:01:37.3]} 1-0

[Event "Late-Titled-Tuesday-Blitz-May-07-2024"]
[Site "Chess.com"]
[Date "2024.05.07"]
[Round "5"]
[White "SRob2003"]
[Black "ChessWarrior7197"]
[Result "0-1"]
[WhiteElo "2690"]
[BlackElo "3136"]
[TimeControl "180+1"]
[EndTime "14:54:23 PDT"]
[Termination "ChessWarrior7197 won by checkmate"]

1. d4 {[%clk 0:03:00.9]} 1... Nf6 {[%clk 0:02:57.7]} 2. c4 {[%clk 0:03:01.3]}
2... e6 {[%clk 0:02:58]} 3. Nf3 {[%clk 0:03:01.5]} 3... c5 {[%clk 0:02:56.4]} 4.
d5 {[%clk 0:03:00.7]} 4... exd5 {[%clk 0:02:56.6]} 5. cxd5 {[%clk 0:03:01.6]}
5... d6 {[%clk 0:02:57.3]} 6. Nc3 {[%clk 0:03:01.4]} 6... g6 {[%clk 0:02:57.9]}
7. e4 {[%clk 0:02:59.5]} 7... Bg7 {[%clk 0:02:58.4]} 8. Be2 {[%clk 0:02:59.1]}
8... O-O {[%clk 0:02:58.5]} 9. Be3 {[%clk 0:02:59.8]} 9... a6 {[%clk 0:02:49]}
10. a4 {[%clk 0:02:58.8]} 10... b6 {[%clk 0:02:43.3]} 11. Nd2 {[%clk 0:02:56.9]}
11... Ra7 {[%clk 0:02:43.4]} 12. O-O {[%clk 0:02:56.4]} 12... Re7 {[%clk
0:02:43.6]} 13. f3 {[%clk 0:02:56.1]} 13... Nbd7 {[%clk 0:02:42.2]} 14. Nc4
{[%clk 0:02:51.7]} 14... Ne5 {[%clk 0:02:41.5]} 15. Rb1 {[%clk 0:02:31.3]} 15...
Nxc4 {[%clk 0:02:37.1]} 16. Bxc4 {[%clk 0:02:32.2]} 16... Nh5 {[%clk 0:02:37.5]}
17. Qd3 {[%clk 0:02:11]} 17... f5 {[%clk 0:02:37.2]} 18. Bxa6 {[%clk 0:02:09.1]}
18... Bxa6 {[%clk 0:02:22.3]} 19. Qxa6 {[%clk 0:02:10]} 19... Nf6 {[%clk
0:02:05.6]} 20. Qc4 {[%clk 0:01:49]} 20... fxe4 {[%clk 0:02:04.7]} 21. fxe4
{[%clk 0:01:49.9]} 21... Ng4 {[%clk 0:02:04.9]} 22. Bg5 {[%clk 0:01:38.6]} 22...
Bd4+ {[%clk 0:02:04.2]} 23. Kh1 {[%clk 0:01:39.2]} 23... Nf2+ {[%clk 0:01:59.9]}
24. Rxf2 {[%clk 0:01:39.2]} 24... Rxf2 {[%clk 0:02:00.7]} 25. Bh4 {[%clk
0:00:32.8]} 25... Rf8 {[%clk 0:01:35.4]} 26. Rf1 {[%clk 0:00:24.8]} 26... Bxc3
{[%clk 0:01:22.3]} 27. Rxf8+ {[%clk 0:00:08.6]} 27... Qxf8 {[%clk 0:01:23.2]}
28. Bxe7 {[%clk 0:00:08.7]} 28... Qf2 {[%clk 0:01:23.5]} 29. h3 {[%clk
0:00:05.8]} 29... Qe1+ {[%clk 0:01:22.9]} 30. Kh2 {[%clk 0:00:05.4]} 30... Be5+
{[%clk 0:01:23.5]} 31. g3 {[%clk 0:00:05.7]} 31... Qxg3+ {[%clk 0:01:23.7]} 32.
Kh1 {[%clk 0:00:06.3]} 32... Qh2# {[%clk 0:01:24.6]} 0-1